Cogmind - Beta 9.6 @@@ ROGUE MODE // 2020.07.16 @ 13:26:11 Player: Lyft Result: Destroyed self with YOLO Cannon Performance ------------- Evolutions (0) 0 Regions Visited (3) 600 Robots Destroyed (39) 195 Value Destroyed (310) 310 Prototype IDs (22) 440 Alien Tech Used (0) 0 Bonus (-710) -710 TOTAL SCORE: 835 Bonus ------- Aligned with FarCom 300 Friendly Fire -1010 Cogmind --------- Core Integrity 0/250 Matter 210/300 Energy 240/310 System Corruption 0% Temperature Cool (30) Movement Treading (180) Ox1 Location -10/Exiles Parts ------- > --- POWER (1) -------- Fission Core > --- PROPULSION (2) --- Light Treads Light Treads > --- UTILITY (2) ------ Improved Heat Sink High-capacity Storage Unit > --- WEAPON (2) ------- YOLO Cannon > --- INVENTORY (12) --- Light Ion Engine Light Treads Heat Sink Light Armor Plating Light Armor Plating Heavy EM Pulse Gun Heavy EM Pulse Gun Heavy EM Pulse Gun Assault Rifle Light Assault Rifle Heavy Assault Rifle Peak State ------------ > --- POWER ------------ Fission Core > --- PROPULSION ------- Light Treads Light Treads > --- UTILITY ---------- Improved Heat Sink High-capacity Storage Unit > --- WEAPON ----------- YOLO Cannon > --- INVENTORY -------- Light Ion Engine Light Treads Heat Sink Light Armor Plating Light Armor Plating Heavy EM Pulse Gun Heavy EM Pulse Gun Heavy EM Pulse Gun Light Assault Rifle Heavy Assault Rifle [Rating: 32] Favorites ----------- Power Improved Ion Engine Engine Improved Ion Engine Power Core Fission Core Propulsion Light Treads Treads Light Treads Leg Aluminum Leg Wheel Wheel Utility High-capacity Storage Unit Device Improved Heat Sink Storage High-capacity Storage Unit Processor Seismic Analyzer Weapon Light Assault Rifle Energy Gun EM Pulse Gun Energy Cannon YOLO Cannon Ballistic Gun Light Assault Rifle Launcher Grenade Launcher Build | -11 -10 -10 -10 ------- Run | Scr Mat Min Exi Slots Evolved . | . . . . Power . | . . . . Propulsion . | . . . . Utility . | . . . . Weapon . | . . . . Parts Attached 31 | 3 7 12 9 Power 3 | . . 1 2 Engine 2 | . . 1 1 Core 1 | . . . 1 Reactor . | . . . . Propulsion 9 | 2 3 2 2 Treads 6 | 1 2 1 2 Leg . | . . . . Wheel 3 | 1 1 1 . Hover . | . . . . Flight . | . . . . Utility 8 | 1 3 1 3 Device 2 | . . . 2 Storage 5 | . 3 1 1 Processor 1 | 1 . . . Hackware . | . . . . Protection . | . . . . Artifact . | . . . . Weapon 11 | . 1 8 2 Energy Gun 2 | . . 2 . Energy Cannon 1 | . . . 1 Ballistic Gun 6 | . 1 4 1 Ballistic Cannon . | . . . . Launcher 2 | . . 2 . Special Weapon . | . . . . Impact Weapon . | . . . . Slashing Weapon . | . . . . Piercing Weapon . | . . . . Special Melee Weapon . | . . . . Unidentified Prototypes . | . . . . Parts Lost 4 | . . 4 . Power . | . . . . Propulsion 1 | . . 1 . Utility . | . . . . Weapon 3 | . . 3 . Highest Loss Streak 3 | . . 3 . Average Slot Usage (%) 92 | . 99 95 85 Engine 12 | . 14 14 9 Core 1 | . . . 4 Treads 12 | . 20 11 8 Wheel 10 | . 7 14 9 Device 1 | . . . 4 Storage 26 | . 27 28 23 Energy Gun 7 | . . 10 9 Ballistic Gun 17 | . 28 15 12 Naked Turns . | . . . . Heaviest Build 75 | 11 55 75 75 Greatest Support 40 | 10 40 20 40 Greatest Overweight (x) 7 | 1 5 7 7 Average Overweight (x) 4 | 1 2 5 5 Largest Inventory Capacity 20 | 6 18 20 20 Average Capacity 17 | 6 17 18 17 Most Carried 20 | 6 16 19 20 Average Carried 15 | 5 12 17 16 Final Capacity 20 | 6 18 20 12 Final Carried 18 | 5 16 18 11 Class Distribution -------------------- 50% | Mutant 37% | Hauler-Mutant 12% | Scavenger-Mutant Dominant Class ---------------- Mutant | -10/Materials Mutant | -10/Mines Hauler-Mutant | -10/Exiles Resources | -11 -10 -10 -10 ----------- Run | Scr Mat Min Exi Matter Collected 624 | 252 141 231 . Remotely . | . . . . Salvage Created 616 | 81 228 271 36 Parts 42 | 4 26 12 . Haulers Intercepted . | . . . . Recyclers Shooed 2 | . . 2 . Parts Field Recycled . | . . . . Retrieved Matter . | . . . . Parts Self-Destructed . | . . . . Prevented . | . . . . Kills | -11 -10 -10 -10 ------- Run | Scr Mat Min Exi Combat Hostiles Destroyed 30 | . 9 19 2 Guns 19 | . 9 10 . Cannons 2 | . . . 2 AOE 9 | . . 9 . Classes Destroyed 6 | 2 3 1 . Tunneler 1 | 1 . . . Recycler 2 | 1 . 1 . Watcher 1 | . 1 . . Swarmer 15 | . 6 9 . Grunt 3 | . 3 . . Assembled 17 | . . 10 7 Best Kill Streak 7 | 2 3 7 2 Combat Bots Only 7 | . 3 7 2 Max Kills in Single Turn 5 | 1 1 2 5 Gunslinging . | . . . . Exploded 2 | . . 2 . Melee . | . . . . Uniques/NPCs Destroyed . | . . . . Combat | -11 -10 -10 -10 -------- Run | Scr Mat Min Exi Damage Taken 1200 | . 372 565 263 Core 266 | . 40 133 93 Absorbed by Shields . | . . . . Core Remaining (%) 100 | 100 . . . Volleys Fired 105 | 11 40 48 6 Largest 2 | 2 2 2 1 Hottest 100 | 40 40 65 100 Shots Fired 184 | 22 80 76 6 Gun 170 | 22 80 68 . Cannon 6 | . . . 6 Launcher 8 | . . 8 . Special . | . . . . Kinetic 133 | 22 80 31 . Thermal 6 | . . . 6 Explosive 8 | . . 8 . Electromagnetic 37 | . . 37 . Robot Hit Streak 11 | 11 9 8 5 Robot Miss Streak 5 | 1 4 5 1 Penetration Max . | . . . . Secondary Targets 1 | . . 1 . Max Gunslinging Chain 1 | . . 1 . Shots Hit Robots 105 | 17 49 35 4 Core Hits 72 | 5 20 40 7 Critical Hits 2 | . . . 2 Critical Kills . | . . . . Critical Parts Destroyed . | . . . . Melee Attacks . | . . . . Impact . | . . . . Slashing . | . . . . Piercing . | . . . . Sneak Attacks . | . . . . Combat Hostiles . | . . . . Follow-up Attacks . | . . . . Damage Inflicted 2368 | 135 383 1157 693 Guns 912 | 135 383 394 . Cannons 322 | . . . 322 Explosions 1134 | . . 763 371 Melee . | . . . . Ramming . | . . . . Kinetic 663 | 135 383 145 . Thermal 763 | . . 70 693 Explosive 693 | . . 693 . Electromagnetic 249 | . . 249 . Impact . | . . . . Slashing . | . . . . Piercing . | . . . . Highest Corruption . | . . . . Average Corruption . | . . . . Corruption Purged . | . . . . Overload Shots . | . . . . Overflow Damage 94 | . . 72 22 Projectiles . | . . . . Explosions 94 | . . 72 22 Melee . | . . . . Knockbacks . | . . . . Impact . | . . . . Kinetic . | . . . . Secondary . | . . . . Self-Inflicted Damage 180 | . . 56 124 Shots 5 | . . 2 3 Rammed . | . . . . Targets Rammed . | . . . . Kicked . | . . . . Crushed . | . . . . Highest Temperature 94 | . 25 94 32 Average Temperature 22 | . 9 26 16 Received Heat Transfer 201 | . 141 . 60 Siege Activations . | . . . . Robots Corrupted . | . . . . Combat Hostiles . | . . . . Parts Fried 1 | . . 1 . Impact Corruptions . | . . . . Robots Melted . | . . . . Combat Hostiles . | . . . . Parts Melted . | . . . . Heat Transferred 740 | . . 100 640 Parts Sabotaged . | . . . . Parts Stolen . | . . . . Parts Stripped . | . . . . Power Chain Reactions 1 | . . 1 . Missiles Intercepted . | . . . . Alert | -11 -10 -10 -10 ------- Run | Scr Mat Min Exi Peak Influence 235 | 10 235 139 . Average Influence 68 | 3 76 66 . Maximum Alert Level 1 | . 1 . . Low Security (%) 98 | 100 95 100 . Level 1 1 | . 4 . . Level 2 . | . . . . Level 3 . | . . . . Level 4 . | . . . . Level 5 . | . . . . High Security . | . . . . Max Security . | . . . . Squads Dispatched . | . . . . Investigation . | . . . . Extermination . | . . . . Reinforcement . | . . . . Assault . | . . . . Garrison . | . . . . Intercept . | . . . . Construction Impeded . | . . . . Haulers Reinforced . | . . . . Stealth | -11 -10 -10 -10 --------- Run | Scr Mat Min Exi Distress Signals 1 | . 1 . . Communications Jammed . | . . . . Distress Signals . | . . . . Times Spotted 51 | . 17 31 3 Peak Tracking Total 11 | . 4 11 4 Tactical Retreats 3 | . . 3 . Traps | -11 -10 -10 -10 ------- Run | Scr Mat Min Exi Traps Triggered . | . . . . Indirectly . | . . . . Trap Hack Attempts . | . . . . Triggered . | . . . . Disarmed . | . . . . Reprogrammed . | . . . . Reused . | . . . . Traps Extracted . | . . . . Installed . | . . . . Triggered . | . . . . Machines | -11 -10 -10 -10 ---------- Run | Scr Mat Min Exi Machines Disabled 4 | . . 1 3 Max in Single Turn 1 | . . 1 1 Machines Sabotaged . | . . . . Garrisons Compromised . | . . . . Overloaded Fab Kills . | . . . . Fab Network Shutdowns . | . . . . Hacking | -11 -10 -10 -10 --------- Run | Scr Mat Min Exi Machines Accessed 6 | . 4 . 2 Terminals 4 | . 4 . . Fabricators . | . . . . Repair Stations . | . . . . Recycling Units . | . . . . Scanalyzers . | . . . . Garrison Access . | . . . . Total Hacks 18 | . 16 . 2 Successful 11 | . 9 . 2 Failed 7 | . 7 . . Catastrophic . | . . . . Database Lockouts . | . . . . Manual 15 | . 14 . 1 Terminals 16 | . 16 . . Fabricators . | . . . . Repair Stations . | . . . . Recycling Units . | . . . . Scanalyzers . | . . . . Garrison Access . | . . . . Terminal Hacks 4 | . 2 . 2 Record 1 | . . . 1 Terminal Index 1 | . 1 . . Locate Traps 1 | . 1 . . EX-Prototype ID Bank 1 | . . . 1 Fabricator Hacks . | . . . . Repair Station Hacks . | . . . . Recycling Unit Hacks . | . . . . Scanalyzer . | . . . . Garrison Access Hacks . | . . . . Unauthorized Hacks 7 | . 7 . . Terminals 7 | . 7 . . Track 2 | . 2 . . Botnet 3 | . 3 . . Operators 2 | . 2 . . Fabricators . | . . . . Repair Stations . | . . . . Recycling Units . | . . . . Scanalyzers . | . . . . Garrison Access . | . . . . Data Cores Recovered . | . . . . Used . | . . . . Hacking Detections 4 | . 4 . . Full Trace Events . | . . . . Feedback Events . | . . . . Feedback Blocked . | . . . . Robot Schematics Acquired . | . . . . Robots Built . | . . . . Matter . | . . . . Time . | . . . . Total Robot Build Rating . | . . . . Part Schematics Acquired . | . . . . Parts Built . | . . . . Matter . | . . . . Time . | . . . . Total Part Build Rating . | . . . . Parts Repaired . | . . . . Time . | . . . . Parts Recycled . | . . . . Recycled Matter . | . . . . Retrieved Matter . | . . . . Retrieved Components . | . . . . Parts Scanalyzed . | . . . . Part Schematics Acquired . | . . . . Parts Damaged . | . . . . Bothacking | -11 -10 -10 -10 ------------ Run | Scr Mat Min Exi Used RIF Installer . | . . . . Robots Hacked . | . . . . Non-combat . | . . . . Combat . | . . . . Robot Hacks Applied . | . . . . Relay Couplers Released . | . . . . Robots Rewired . | . . . . Allies Hacked . | . . . . Hacks Repelled . | . . . . Allies | -11 -10 -10 -10 -------- Run | Scr Mat Min Exi Total Allies . | . . . . Largest Group . | . . . . Highest-Rated Group . | . . . . Highest-Rated Ally . | . . . . Total Orders . | . . . . Ally Attacks . | . . . . Total Damage . | . . . . Kills . | . . . . Allies Corrupted . | . . . . Allies Melted . | . . . . Intel | -11 -10 -10 -10 ------- Run | Scr Mat Min Exi Robot Analysis Total . | . . . . Derelict Logs Recovered 3 | . . 3 . Drone Launches . | . . . . Drone Recoveries . | . . . . Exploration | -11 -10 -10 -10 ------------- Run | Scr Mat Min Exi Turns Passed 2872 | 63 677 1025 1107 Spaces Moved 1703 | 33 361 635 674 Core . | . . . . Treads 312 | . 131 12 169 Legs . | . . . . Wheels 1391 | 33 230 623 505 Hover . | . . . . Flight . | . . . . Fastest Speed 90 | 90 90 130 150 Average Speed 144 | 90 140 136 157 Slowest Speed 220 | 90 180 220 180 Overloaded Moves . | . . . . Propulsion Burnouts . | . . . . Robots Hopped . | . . . . Cave-ins Triggered . | . . . . Exploration Rate (%) 64 | 3 69 96 91 Regions Visited 3 Branch Regions 2 Pre-discovered Areas 2 | . . 1 1 Known Exits Taken . | . . . . Unknown Exits Taken 3 | 1 1 1 . Scrap Searched 4 | . . 4 . Spaces Dug 10 | . . 10 . Terrain Destroyed 118 | . . 70 48 Melee . | . . . . Projectile 1 | . . . 1 AOE 117 | . . 70 47 Actions | -11 -10 -10 -10 --------- Run | Scr Mat Min Exi Total 1947 | 49 466 722 710 Wait 56 | . 47 9 . Move 1700 | 32 360 634 674 Hop . | . . . . Pick Up 28 | 1 10 11 6 Fast Attach 3 | 1 . . 2 Attach 14 | 2 1 6 5 Detach . | . . . . Swap 14 | . 6 6 2 Drop 27 | 2 2 8 15 Fire 105 | 11 40 48 6 Melee . | . . . . Ram . | . . . . Kick . | . . . . Crush . | . . . . Escape Stasis . | . . . . Rewire . | . . . . Trap . | . . . . Miscellaneous . | . . . . Route ------- -11/Scrapyard -10/Materials (discovered 2 exits: [*Mat] / [*Min]) -10/Mines (discovered 2 exits: [*Mat] / *Exi) -10/Exiles (discovered 2 exits: [*Min x2]) History --------- Turn | Location | Event 26 | -11/Scrapyard | Discovered new exit (range 3) 64 | -11/Scrapyard | Entered Materials 251 | -10/Materials | Discovered new exit (range 10) 307 | -10/Materials | Build established: Mutant 530 | -10/Materials | Discovered new exit (range 8) 741 | -10/Materials | Entered Mines 977 | -10/Mines | Joined a pair of Derelicts in attacking an 0b10 outpost 1086 | -10/Mines | Assembled infested the area 1091 | -10/Mines | Assisted by a Guerilla fighting off Assembled 1143 | -10/Mines | Destroyed 7 combat bots 1163 | -10/Mines | Learned location of Mines (-9) 1265 | -10/Mines | Discovered new exit (range 16) 1336 | -10/Mines | Learned Materials security intel 1523 | -10/Mines | Deemed a non-threat by the Exiles lab entrance 1523 | -10/Mines | Discovered new exit (range 5) 1648 | -10/Mines | Lost 3 parts (1n2w) 1701 | -10/Mines | Core integrity fell below 50% 1749 | -10/Mines | Build established: Hauler-Mutant 1766 | -10/Mines | Entered Exiles 1802 | -10/Exiles | Met 8R-AWN 1826 | -10/Exiles | Met EX-HEX 1909 | -10/Exiles | Met EX-DEC 1937 | -10/Exiles | Visited The Gauntlet 2093 | -10/Exiles | Learned location of Zion (-7) 2187 | -10/Exiles | Discovered new exit (range 14) 2301 | -10/Exiles | Met EX-BIN 2322 | -10/Exiles | Aligned with FarCom system 2324 | -10/Exiles | Given EX-Vault access code 2366 | -10/Exiles | Opened EX-Vault 2376 | -10/Exiles | Found Skeleton Box 2410 | -10/Exiles | Warned to stay clear of 0b10 Research branches 2506 | -10/Exiles | Discovered new exit (range 15) 2738 | -10/Exiles | Found YOLO Cannon 2813 | -10/Exiles | Build established: Scavenger-Mutant 2854 | -10/Exiles | Attacked by the Exiles 2866 | -10/Exiles | Core integrity fell below 20% 2873 | -10/Exiles | Destroyed self with YOLO Cannon Last Messages --------------- 02854_ EXILES: Hostile robot within lab perimeter. Defensive protocols time, folks! 02857_ as-95764 destroyed. 02857_ Machine disabled. 02858_ Extracted 53 energy. 02862_ HV Slug penetrates Wall. 02862_ Penetrated by HV Slug. 02862_ HV Slug penetrates EX-HEX. 02862_ EX-HEX suffers critical hit. 02865_ Penetrated by HV Slug. 02865_ as-38313 destroyed. 02866_ Extracted 53 energy. 02868_ HV Slug penetrates Wall. 02868_ Penetrated by HV Slug. 02868_ HV Slug penetrates Wall. 02869_ 8R-AWN suffers critical hit. 02869_ Machine disabled. 02870_ Extracted 53 energy. 02870_ Penetrated by HV Slug. 02873_ 8R-AWN suffers critical hit. Map ----- +----------------------------------------------------+ | """#??????????????????????????????????? | | """#??????????????????????????????????? | | """#??????????????????????????????????? | | """#??????????????????????????????????? | | """"??????????????????????????????????? | | """#??????????????????????????????????? | | "X" """"??????????????????????????????????? | | """ #??????????????????????????????????? | | """""""""#??????????????????????????????????? | | ###########??????????????????????????????????? | | #????????????????????????????????????????????? | | #????????????????????????????????????????????? | | ##???????????????????????????????????????????? | | ##???###########????????????????????????????? | | #####"""""""""##???????????????????????????? | | " """ """"##??????????????????????????? | | "" " #??????????????????????????? | | " """#??????????????????????????? | | "a"#???????????#####??????????? | | " "##?????????##" #??????????? | | ""###???????#" #??????????? | | "" """#??????##" ##?????????? | | #""" "#?###### ###???????? | | #####""" ## # ######### | | ????##""" #""""## | | ?????#"""" @ | | ????##"" g ## * | | ?####"""" #### | | ##""" ""#?#"""""#### | | """ ; ""##?#######??#### | | ######??????????????## | | ##????????????????????? | | " ##?????????????????????? | | "" """ #??????????????????????? | | ##""" " " ""#" ;#??????????????????????? | | ######""" """#; ;#???????????????????????? | | #????###""""##; ;????????????????????????? | | ####???######? ????????????????????????? | | "!#???????????? ##????????????????????????? | | !#??????????????? #??????????????????????????? | | "#???????????????????????????????????????????? | | !""!"#???????????????????????????????????????????? | | ######???????????????????????????????????????????? | | ?????????????????????????????????????????????????? | | ?????????????????????????????????????????????????? | | ?????????????????????????????????????????????????? | | ?????????????????????????????????????????????????? | | ?????????????????????????????????????????????????? | | ?????????????????????????????????????????????????? | | ?????????????????????????????????????????????????? | +----------------------------------------------------+ Best States ------------- Heat Dissipation 39 Energy Generation 18 Energy Capacity 310 Matter Stores 300 Matter Capacity 300 Sight Range 16 Terrain Scan Density 60 Evasion (%) 42 Recoil Reduction 2 Item Schematics ----------------- None Robot Schematics ------------------ None Fabricated ------------ Nothing Alien Tech Used ----------------- None Achievements -------------- Collateral Damage Challenges ------------ None Game ------ Seed TerrainCoreInverter Manual? 0 Play Time 00:23:07 Cumulative 15.0 hours Start 2020.07.16 @ 13:05:04 End 2020.07.16 @ 13:26:11 Sessions 1 Manual Loads 0 Difficulty Rogue Special Mode None Game No. 34 Rogue 32 Adventurer 1 Explorer 1 Win Type - Total 0 Types 0/0/0/0/0/0/0 Lore% 22 Gallery% 27 Achievement% 19 Wizard Run 0 Options --------- ASCII 0 Keyboard 0 Movement Mouse Keybinds 0 Fullscreen 2 Font 24/Terminus Map View 76x50 Tactical HUD 1 Map Filters NONE Filters NONE Steam 1 RUN: a8ece568-8fc4-4495-8e80-07e5dbcd25a0